[Event "SixDays Budapest GM-B January 2024"]
[Site "Budapest"]
[Date "2024.01.28"]
[Round "3.4"]
[White "Pap, Misa"]
[Black "Coenen, Michael"]
[Result "0-1"]
[ECO "C48"]
[WhiteElo "2422"]
[BlackElo "2330"]
[Annotator "TA"]
[PlyCount "88"]
[EventDate "2024.01.26"]
[EventType "tourn"]
[EventCountry "HUN"]
[SourceTitle "playchess.com"]
[Source "ChessBase"]
[SourceQuality "1"]
[TimeControl "5400+30"]

{[%evp 11,88,0,0,-1,0,5,0,-19,-5,-6,0,1,6,-29,-5,-51,-50,-133,-83,-98,-89,-184,-173,-185,-184,-236,-230,-240,-247,-287,-209,-207,-211,-228,-159,-220,-82,-353,-325,-362,-166,-458,-456,-469,-457,-479,-475,-469,-477,-487,-485,-490,-489,-508,-515,-505,-518,-645,-629,-663,-652,-1277,-1107,-29978,-29979,-29987,-29988,-29988,-29989,-29992,-29993,-29993,-29994,-29994,-29995,-29996,-29997,-29998,-29999]} 1. e4 {[%emt 0:00:07]} e5 {[%emt 0:03:43]} 2. Nf3 {[%emt 0:00:07]} Nf6 {[%emt 0:00:03]} 3. Nc3 {[%emt 0:02:36]} Nc6 {[%emt 0:00:06]} 4. Bb5 {[%emt 0:00:07]} Nd4 {[%emt 0:00:04]} 5. Bc4 {[%emt 0:00:23]} Bc5 {[%emt 0:00:05]} 6. d3 {[%emt 0:01:08]} d6 {[%emt 0:00:53]} 7. h3 {[%emt 0:08:44] Prevents Bg4} Be6 {[%emt 0:03:51]} 8. Nxd4 {[%emt 0:02:47]} Bxd4 {[%emt 0:02:53]} 9. Bb3 {[%emt 0:01:47] The position is equal.} Qe7 {[%emt 0:08:06]} 10. Qf3 {[%emt 0:03:41]} h6 {[%emt 0:04:44]} 11. Ne2 {[%emt 0:21:54]} Bb6 {[%emt 0:01:36]} 12. g4 {[%emt 0:01:28]} Nd7 {[%emt 0:07:40]} 13. Ba4 {[%emt 0:06:05]} (13. Be3 $11) 13... O-O-O $15 {[%emt 0:05:06]} 14. c3 {[%emt 0:01:44]} (14. Bb3 $15) 14... Rdf8 {[%emt 0:04:59] Black is more active.} (14... d5 $142 15. Bc2 (15. exd5 $2 Nc5 $19) 15... dxe4 16. dxe4 Kb8) 15. Be3 {[%emt 0:12:24]} h5 {[%emt 0:02:58]} 16. g5 {[%emt 0:09:23]} (16. O-O-O $17 {was called for.}) 16... f5 {[%emt 0:02:24] ...fxe4 would now be deadly.} 17. gxf6 {[%emt 0:02:20]} Rxf6 {[%emt 0:01:30]} 18. Qg3 {[%emt 0:00:09]} (18. Qg2 $142) 18... h4 $19 {[%emt 0:11:57]} 19. Qg5 {[%emt 0:03:19]} Qf7 {[%emt 0:00:30] White must now prevent ...Rg6.} 20. Rg1 Rh7 (20... Bxa2 $2 21. Bxd7+ (21. Qxg7 Rh7 $11) (21. Rxa2 Bxe3 22. Bxd7+ Kxd7 $11) 21... Kxd7 22. Bxb6 (22. Qxg7 $2 Bxe3 23. Qxf7+ Bxf7 $17) 22... axb6 23. Rxa2 $18 (23. Qxg7 Rh7 $11)) (20... Bxh3 21. d4 $19) 21. d4 {[%emt 0:08:28]} Bxh3 {[%emt 0:21:48]} 22. f4 {[%emt 0:01:41]} exd4 {[%emt 0:03:03]} 23. cxd4 {[%emt 0:02:46] [#]} (23. Bxd4 $17 Be6 24. f5) 23... Qc4 {[%emt 0:01:24]} (23... c6 $1 $19 {is more deadly. Strongly threatening ...Qe8.} 24. Rc1 Be6 (24... Qxa2 $2 25. Bc2 $19)) 24. Bb5 $2 {[%emt 0:06:51][%mdl 8192] White does not recover from this.} (24. Qb5 $17 Be6 25. Qxc4 Bxc4 26. Bc2) 24... Qc2 {[%emt 0:01:45][%csl LRb2,LRe4]} ({Weaker is} 24... Qb4+ 25. Kf2 $19) 25. Nc3 {[%emt 0:01:03]} Nf8 {[%emt 0:05:11]} (25... Qxb2 $142 26. Rc1 Kb8 (26... Bxd4 $2 27. Nd1 $17)) 26. f5 $2 {[%emt 0:00:26]} (26. Rc1 Qxb2 27. Kd1 (27. f5 $2 Ba5 $19)) 26... Qxb2 {[%emt 0:03:24]} 27. Rc1 {[%emt 0:00:29]} Ba5 $1 {[%emt 0:00:01][%csl LRa2,LRb5,LRc3]} 28. Bd2 {[%emt 0:00:27] Threatens to win with Bd3.} Bxc3 {[%emt 0:00:28]} 29. Rxc3 {[%emt 0:00:16]} Qxb5 {[%emt 0:00:06]} 30. Rxh3 {[%emt 0:00:07]} Qb1+ {[%emt 0:00:32]} 31. Ke2 {[%emt 0:01:47]} Qxe4+ {[%emt 0:00:22]} 32. Re3 {[%emt 0:00:06]} Qxf5 {[%emt 0:01:07]} 33. Qxf5+ {[%emt 0:00:11]} Rxf5 {[%emt 0:00:01]} 34. Re7 {[%emt 0:00:11] [#]} g5 $1 {[%emt 0:00:36]} 35. Re4 {[%emt 0:00:39]} (35. Re3 Kd7) 35... h3 {[%emt 0:00:28]} 36. Bxg5 {[%emt 0:00:14] [#]} Rxg5 $1 {[%emt 0:02:02]} 37. Rxg5 {[%emt 0:00:06][%mdl 4096] Endgame. KRR-KRN} (37. Rh1 Ng6) 37... h2 {[%emt 0:00:03] Black mates.} 38. Rg8 {[%emt 0:00:13]} h1=Q {[%emt 0:00:17]} 39. Rxf8+ {[%emt 0:00:04]} Kd7 {[%emt 0:00:05]} 40. Ref4 {[%emt 0:00:24]} Re7+ {[%emt 0:00:41]} 41. Kd3 {[%emt 0:00:05]} Qb1+ {[%emt 0:00:25]} 42. Kd2 {[%emt 0:00:04]} Qe1+ {[%emt 0:00:48]} 43. Kd3 {[%emt 0:00:05]} Re3+ {[%emt 0:00:06]} 44. Kc2 {[%emt 0:00:06]} Qc3+ {[%emt 0:00:06] Weighted Error Value: White=0.59/Black=0.23 (precise) .  Loses game:     	White=1     	---        Mistake:       	White=6     	Black=3      Inaccurate:     	White=1     	Black=1      OK:         	White=8     	Black=10     Best:        	---       	Black=4} 0-1

[Event "SixDays Budapest GM-B January 2024"]
[Site "Budapest"]
[Date "2024.01.28"]
[Round "3.5"]
[White "Kaczur, Florian"]
[Black "Gombocz, Ferenc Jr."]
[Result "1/2-1/2"]
[ECO "A06"]
[WhiteElo "2506"]
[BlackElo "2366"]
[Annotator "RC"]
[PlyCount "88"]
[EventDate "2024.01.26"]
[EventType "tourn"]
[EventCountry "HUN"]
[SourceTitle "playchess.com"]
[Source "ChessBase"]
[SourceQuality "1"]
[TimeControl "5400+30"]

1. Nf3 {[%emt 0:00:04]} d5 {[%emt 0:00:08]} 2. g3 {[%emt 0:00:18]} Bg4 {[%emt 0:00:12]} 3. Bg2 {[%emt 0:00:07]} Nd7 {[%emt 0:00:11]} 4. h3 {[%emt 0:01:51]} Bh5 {[%emt 0:01:07]} 5. O-O {[%emt 0:04:24]} Ngf6 {[%emt 0:01:42]} 6. d3 {[%emt 0:03:30]} e5 {[%emt 0:10:13]} 7. c4 {[%emt 0:06:44]} dxc4 {[%emt 0:04:50]} 8. dxc4 {[%emt 0:00:16]} c6 {[%emt 0:00:20]} 9. b3 {[%emt 0:01:55]} Bc5 {[%emt 0:02:57]} 10. Bb2 {[%emt 0:05:59]} Qe7 {[%emt 0:00:41]} 11. Qc1 {[%emt 0:05:28]} O-O {[%emt 0:03:00]} 12. Nc3 {[%emt 0:00:43]} Rfe8 {[%emt 0:04:48]} 13. Nh4 {[%emt 0:02:58]} Bg6 {[%emt 0:04:59]} 14. Nxg6 {[%emt 0:07:03]} hxg6 {[%emt 0:00:07]} 15. e3 {[%emt 0:00:14]} Bd6 {[%emt 0:04:11]} 16. Rd1 {[%emt 0:02:35]} Rad8 {[%emt 0:01:05]} 17. a3 {[%emt 0:07:28]} a5 {[%emt 0:01:33]} 18. Qc2 {[%emt 0:00:32]} Bc7 {[%emt 0:01:33]} 19. Bf1 {[%emt 0:04:23]} Nh7 {[%emt 0:03:12]} 20. Kg2 {[%emt 0:02:21]} f5 {[%emt 0:04:42]} 21. Rd2 {[%emt 0:04:46]} Nc5 {[%emt 0:01:30]} 22. Rxd8 {[%emt 0:04:40]} Rxd8 {[%emt 0:00:10]} 23. b4 {[%emt 0:00:40]} Na6 {[%emt 0:02:56]} 24. c5 {[%emt 0:00:37]} Nf6 {[%emt 0:02:03]} 25. Rd1 {[%emt 0:10:14]} Rxd1 {[%emt 0:01:21]} 26. Qxd1 {[%emt 0:00:14]} Qd7 {[%emt 0:03:35]} 27. Qb3+ {[%emt 0:01:17]} Kf8 {[%emt 0:05:40]} 28. Bc1 {[%emt 0:04:35]} Nd5 {[%emt 0:11:46]} 29. Bc4 {[%emt 0:06:11]} axb4 {[%emt 0:00:25]} 30. Nxd5 {[%emt 0:00:52]} cxd5 {[%emt 0:00:08]} 31. Bxd5 {[%emt 0:01:10]} Nxc5 {[%emt 0:00:14]} 32. Qc4 {[%emt 0:00:11]} Bd6 {[%emt 0:00:58]} 33. axb4 {[%emt 0:01:00]} b5 {[%emt 0:00:11]} 34. Qh4 {[%emt 0:02:53]} Ne6 {[%emt 0:03:52]} 35. Bb2 {[%emt 0:01:31]} Kg8 {[%emt 0:02:06]} 36. Bxe6+ {[%emt 0:05:18]} Qxe6 {[%emt 0:05:09]} 37. Qd8+ {[%emt 0:00:06]} Kf7 {[%emt 0:00:10]} 38. Ba3 {[%emt 0:02:02]} Qd5+ {[%emt 0:12:41]} 39. Kg1 {[%emt 0:00:24]} Qd1+ {[%emt 0:00:16]} 40. Kh2 {[%emt 0:00:32]} Qd2 {[%emt 0:00:45]} 41. Qd7+ {[%emt 0:01:06]} Kf6 {[%emt 0:00:27]} 42. Qd8+ {[%emt 0:00:54]} Kf7 {[%emt 0:00:08]} 43. Qd7+ {[%emt 0:00:36]} Kf6 {[%emt 0:00:12]} 44. Qd8+ {[%emt 0:01:05]} Kf7 {[%emt 0:00:07]} 1/2-1/2

[Event "SixDays Budapest GM-B January 2024"]
[Site "Budapest"]
[Date "2024.01.29"]
[Round "4.1"]
[White "Grover, Sahaj"]
[Black "Gombocz, Ferenc Jr."]
[Result "1-0"]
[ECO "C72"]
[WhiteElo "2503"]
[BlackElo "2366"]
[Annotator "RC"]
[PlyCount "59"]
[EventDate "2024.01.26"]
[EventType "tourn"]
[EventCountry "HUN"]
[SourceTitle "playchess.com"]
[Source "ChessBase"]
[SourceQuality "1"]
[TimeControl "5400+30"]

1. e4 {[%emt 0:21:38]} e5 {[%emt 0:00:08]} 2. Nf3 {[%emt 0:00:05]} Nc6 {[%emt 0:00:05]} 3. Bb5 {[%emt 0:00:04]} a6 {[%emt 0:01:46]} 4. Ba4 {[%emt 0:00:05]} d6 {[%emt 0:00:04]} 5. O-O {[%emt 0:01:53]} Bd7 {[%emt 0:00:15]} 6. d4 {[%emt 0:00:51]} exd4 {[%emt 0:00:57]} 7. Bxc6 {[%emt 0:05:18]} Bxc6 {[%emt 0:00:22]} 8. Nxd4 {[%emt 0:01:29]} Be7 {[%emt 0:00:44]} 9. Nc3 {[%emt 0:07:07]} Bf6 {[%emt 0:01:58]} 10. Be3 {[%emt 0:05:03]} Qd7 {[%emt 0:05:04]} 11. Nxc6 {[%emt 0:08:45]} bxc6 {[%emt 0:09:26]} 12. Bd4 {[%emt 0:07:15]} Qe6 {[%emt 0:01:01]} 13. Re1 {[%emt 0:01:17]} Ne7 {[%emt 0:10:11]} 14. f4 {[%emt 0:05:01]} Bxd4+ {[%emt 0:02:03]} 15. Qxd4 {[%emt 0:00:06]} c5 {[%emt 0:00:09]} 16. Qd3 {[%emt 0:02:02]} O-O {[%emt 0:02:32]} 17. e5 {[%emt 0:00:04]} d5 {[%emt 0:02:00]} 18. Rad1 {[%emt 0:02:05]} c4 {[%emt 0:02:18]} 19. Qd4 {[%emt 0:01:21]} c6 {[%emt 0:00:39]} 20. Na4 {[%emt 0:01:28]} Nf5 {[%emt 0:00:27]} 21. Qf2 {[%emt 0:00:06]} d4 {[%emt 0:00:29]} 22. c3 {[%emt 0:05:58]} d3 {[%emt 0:01:16]} 23. g4 {[%emt 0:00:57]} Qg6 {[%emt 0:01:00]} 24. Qg2 {[%emt 0:00:06]} Ne7 {[%emt 0:00:39]} 25. Nb6 {[%emt 0:04:33]} Nd5 {[%emt 0:00:25]} 26. f5 {[%emt 0:03:12]} Qg5 {[%emt 0:01:33]} 27. Nxc4 {[%emt 0:02:23]} h5 {[%emt 0:01:02]} 28. Re4 {[%emt 0:00:50]} g6 {[%emt 0:02:13]} 29. Rf1 {[%emt 0:02:46]} Rae8 {[%emt 0:01:53]} 30. h4 {[%emt 0:00:18]} 1-0

[Event "SixDays Budapest GM-B January 2024"]
[Site "Budapest"]
[Date "2024.01.29"]
[Round "4.2"]
[White "Coenen, Michael"]
[Black "Kaczur, Florian"]
[Result "0-1"]
[ECO "A47"]
[WhiteElo "2330"]
[BlackElo "2506"]
[Annotator "TA"]
[PlyCount "74"]
[EventDate "2024.01.26"]
[EventType "tourn"]
[EventCountry "HUN"]
[SourceTitle "playchess.com"]
[Source "ChessBase"]
[SourceQuality "1"]
[TimeControl "5400+30"]

{[%evp 9,74,23,30,8,4,7,22,10,10,4,17,12,1,0,29,-4,-7,-35,-25,-18,-31,-65,0,-3,0,-56,-50,-70,-86,-80,-43,-83,-52,-93,-92,-84,-99,-138,-131,-150,-162,-149,-137,-144,-134,-149,-152,-158,-153,-152,-133,-177,-176,-191,-194,-160,-164,-231,-219,-239,-241,-237,-235,-238,-234,-610,-612]} 1. d4 {[%emt 0:00:03]} Nf6 {[%emt 0:00:13]} 2. Nf3 {[%emt 0:00:08]} b6 {[%emt 0:01:51]} 3. g3 {[%emt 0:01:53]} Bb7 {[%emt 0:00:40]} 4. Bg2 {[%emt 0:00:07]} g6 {[%emt 0:01:27]} 5. c4 {[%emt 0:04:07]} Bg7 {[%emt 0:03:30]} 6. b3 {[%emt 0:02:08]} c5 {[%emt 0:02:30]} 7. Bb2 {[%emt 0:01:27]} cxd4 {[%emt 0:00:30]} 8. O-O {[%emt 0:00:21] The position is equal.} O-O {[%emt 0:00:18]} 9. Bxd4 {[%emt 0:12:11]} d6 {[%emt 0:04:10]} 10. Bb2 {[%emt 0:01:35]} Nbd7 {[%emt 0:01:18]} 11. Nc3 {[%emt 0:00:30]} a6 {[%emt 0:01:47][%cal Ob6b5]} 12. Ne1 {[%emt 0:03:37][%cal Bf3e1,Be1c2,Bc2e3,Be3c4][%mdl 32]} Qb8 {[%emt 0:03:02][%cal Ob6b5]} 13. Nc2 {[%emt 0:12:25]} Bxg2 {[%emt 0:04:17]} 14. Kxg2 {[%emt 0:00:42]} b5 {[%emt 0:03:42]} 15. Ne3 {[%emt 0:02:09]} bxc4 {[%emt 0:04:53]} ({Black should play} 15... Rc8 $15 16. Rb1 e6) 16. Nxc4 $11 {[%emt 0:00:13]} Rc8 {[%emt 0:00:53]} 17. Qd2 {[%emt 0:05:07]} (17. Rb1 $11) 17... Qb7+ $15 {[%emt 0:06:30]} 18. Kg1 {[%emt 0:00:23]} d5 {[%emt 0:02:05]} 19. Ne3 {[%emt 0:00:33]} e6 {[%emt 0:00:55][%cal Od5d4] ...d4! is the strong threat.} 20. Rac1 {[%emt 0:01:56]} Nc5 {[%emt 0:09:50]} 21. Ncd1 {[%emt 0:06:33] White is on the road to losing.} Nce4 {[%emt 0:15:03]} 22. Rxc8+ {[%emt 0:01:18]} Rxc8 {[%emt 0:00:04]} 23. Qa5 {[%emt 0:00:09]} Bf8 {[%emt 0:11:35] [#] ...Bb4 would now be deadly.} 24. Qa4 {[%emt 0:05:45]} Bb4 {[%emt 0:02:43]} 25. a3 {[%emt 0:00:21]} Be7 {[%emt 0:00:08]} 26. b4 {[%emt 0:05:42]} Qb5 {[%emt 0:01:02]} 27. Qxb5 {[%emt 0:00:34]} axb5 {[%emt 0:00:02]} 28. f3 {[%emt 0:01:31] [#]} Nd2 {[%emt 0:00:43]} 29. Re1 {[%emt 0:00:02]} Nb3 {[%emt 0:01:33]} 30. Nf2 {[%emt 0:03:00]} d4 {[%emt 0:01:15]} 31. Nf1 {[%emt 0:02:10]} Rc2 {[%emt 0:00:43]} 32. Nd3 {[%emt 0:00:05]} Nd5 $36 {[%emt 0:00:46][%cal Oe6e5][%mdl 2048] Keeping White busy. Black has more active pieces.} 33. e3 {[%emt 0:01:35]} (33. Kf2 {keeps fighting.}) 33... Nd2 $19 {[%emt 0:06:25]} 34. Re2 {[%emt 0:06:32]} dxe3 {[%emt 0:00:35]} ({Worse is} 34... Nxf3+ 35. Kf2 $11) 35. Kg2 {[%emt 0:00:48]} Nc3 {[%emt 0:01:44]} 36. Bxc3 {[%emt 0:04:54]} (36. Nxe3 $2 {is the wrong capture.} Rxb2 37. Rf2 Ra2 $19) 36... Rxc3 {[%emt 0:00:08]} 37. Rxe3 $2 {[%emt 0:00:03]} (37. Ne5) 37... Nc4 {[%emt 0:00:21] Weighted Error Value: White=0.31/Black=0.07 (flawless) .  Mistake:       	White=3     	Black=1      Inaccurate:     	White=6     	Black=3      OK:         	White=8     	Black=17     Best:        	White=2     	Black=3} 0-1

[Event "SixDays Budapest GM-B January 2024"]
[Site "Budapest"]
[Date "2024.01.29"]
[Round "4.3"]
[White "Lee, Alice"]
[Black "Pap, Misa"]
[Result "0-1"]
[ECO "A62"]
[WhiteElo "2379"]
[BlackElo "2422"]
[Annotator "RC"]
[PlyCount "170"]
[EventDate "2024.01.26"]
[EventType "tourn"]
[EventCountry "HUN"]
[SourceTitle "playchess.com"]
[Source "ChessBase"]
[SourceQuality "1"]
[TimeControl "5400+30"]

1. d4 {[%emt 0:00:02]} Nf6 {[%emt 0:12:34]} 2. c4 {[%emt 0:00:08]} e6 {[%emt 0:00:36]} 3. g3 {[%emt 0:00:09]} c5 {[%emt 0:00:39]} 4. d5 {[%emt 0:00:07]} exd5 {[%emt 0:00:44]} 5. cxd5 {[%emt 0:00:09]} g6 {[%emt 0:00:17]} 6. Nc3 {[%emt 0:00:08]} d6 {[%emt 0:00:10]} 7. Bg2 {[%emt 0:00:09]} Bg7 {[%emt 0:00:05]} 8. Nf3 {[%emt 0:00:11]} O-O {[%emt 0:00:07]} 9. O-O {[%emt 0:00:16]} Re8 {[%emt 0:01:27]} 10. Bf4 {[%emt 0:01:03]} Na6 {[%emt 0:00:49]} 11. Re1 {[%emt 0:00:40]} Bg4 {[%emt 0:01:18]} 12. h3 {[%emt 0:13:02]} Bf5 {[%emt 0:04:21]} 13. g4 {[%emt 0:21:43]} Be4 {[%emt 0:01:55]} 14. Nxe4 {[%emt 0:06:46]} Nxe4 {[%emt 0:01:10]} 15. Rb1 {[%emt 0:11:32]} b5 {[%emt 0:29:16]} 16. Nd2 {[%emt 0:02:24]} Nxd2 {[%emt 0:01:10]} 17. Qxd2 {[%emt 0:00:16]} c4 {[%emt 0:00:10]} 18. Be3 {[%emt 0:04:11]} Qc7 {[%emt 0:07:42]} 19. Rbc1 {[%emt 0:02:28]} Rac8 {[%emt 0:02:59]} 20. Bd4 {[%emt 0:01:27]} Bxd4 {[%emt 0:02:32]} 21. Qxd4 {[%emt 0:00:06]} Nc5 {[%emt 0:00:24]} 22. Rc3 {[%emt 0:05:18]} Nd3 {[%emt 0:03:49]} 23. Rb1 {[%emt 0:00:13]} Nc5 {[%emt 0:07:23]} 24. Kf1 {[%emt 0:08:25]} Qa5 {[%emt 0:03:21]} 25. Ra3 {[%emt 0:00:36]} Qb6 {[%emt 0:00:28]} 26. Qf4 {[%emt 0:02:45]} Rc7 {[%emt 0:03:32]} 27. Rc1 {[%emt 0:02:02]} Rce7 {[%emt 0:00:40]} 28. Rf3 {[%emt 0:03:58]} Qc7 {[%emt 0:00:47]} 29. Rc2 {[%emt 0:00:54]} Re4 {[%emt 0:01:00]} 30. Qd2 {[%emt 0:03:07]} a5 {[%emt 0:02:40]} 31. Qd1 {[%emt 0:03:35]} R4e5 {[%emt 0:04:15]} 32. Rf4 {[%emt 0:01:10]} Qe7 {[%emt 0:00:34]} 33. Rd4 {[%emt 0:00:50]} Qf6 {[%emt 0:00:49]} 34. Bf3 {[%emt 0:00:41]} R5e7 {[%emt 0:03:04]} 35. Kg2 {[%emt 0:02:24]} Nd3 {[%emt 0:01:16]} 36. Rxd3 {[%emt 0:00:02]} cxd3 {[%emt 0:00:07]} 37. Qxd3 {[%emt 0:00:02]} Rb8 {[%emt 0:00:14]} 38. Qd2 {[%emt 0:00:17]} b4 {[%emt 0:00:13]} 39. Rc6 {[%emt 0:00:09]} Kg7 {[%emt 0:00:37]} 40. b3 {[%emt 0:01:21]} Qe5 {[%emt 0:00:13]} 41. Qd3 {[%emt 0:00:34]} Ra7 {[%emt 0:01:04]} 42. Ra6 {[%emt 0:00:48]} Rba8 {[%emt 0:00:27]} 43. Rb6 {[%emt 0:01:15]} h5 {[%emt 0:00:18]} 44. gxh5 {[%emt 0:01:56]} gxh5 {[%emt 0:00:11]} 45. Qe4 {[%emt 0:02:33]} Qxe4 {[%emt 0:00:33]} 46. Bxe4 {[%emt 0:00:01]} Ra6 {[%emt 0:00:07]} 47. Rb7 {[%emt 0:00:09]} R8a7 {[%emt 0:01:04]} 48. Rb8 {[%emt 0:00:03]} Rc7 {[%emt 0:00:25]} 49. Bd3 {[%emt 0:00:10]} Raa7 {[%emt 0:00:04]} 50. Rb6 {[%emt 0:00:31]} Rd7 {[%emt 0:01:19]} 51. f4 {[%emt 0:01:25]} Rd8 {[%emt 0:00:31]} 52. e4 {[%emt 0:01:15]} f5 {[%emt 0:00:12]} 53. exf5 {[%emt 0:00:44]} Kf6 {[%emt 0:00:08]} 54. Kf3 {[%emt 0:00:15]} h4 {[%emt 0:00:07]} 55. Kf2 {[%emt 0:00:54]} Rg7 {[%emt 0:00:30]} 56. Be4 {[%emt 0:00:10]} Rg3 {[%emt 0:00:51]} 57. Rb7 {[%emt 0:00:44]} Re8 {[%emt 0:00:31]} 58. Bg2 {[%emt 0:00:16]} Rc3 {[%emt 0:01:27]} 59. Rd7 {[%emt 0:00:43]} Rc2+ {[%emt 0:00:34]} 60. Kf3 {[%emt 0:00:14]} Ree2 {[%emt 0:01:06]} 61. Bh1 {[%emt 0:00:53]} Rh2 {[%emt 0:00:34]} 62. Kg4 {[%emt 0:00:01]} Rxh1 {[%emt 0:00:14]} 63. Rxd6+ {[%emt 0:00:02]} Ke7 {[%emt 0:00:07]} 64. Re6+ {[%emt 0:00:23]} Kf7 {[%emt 0:00:16]} 65. Ra6 {[%emt 0:00:42]} Rg1+ {[%emt 0:00:14]} 66. Kf3 {[%emt 0:00:38]} Rf1+ {[%emt 0:00:54]} 67. Ke3 {[%emt 0:00:28]} Rxa2 {[%emt 0:00:27]} 68. Kd4 {[%emt 0:01:00]} Rd2+ {[%emt 0:00:43]} 69. Ke5 {[%emt 0:00:08]} Re2+ {[%emt 0:00:22]} 70. Kd6 {[%emt 0:00:04]} Rxf4 {[%emt 0:00:04]} 71. Rxa5 {[%emt 0:00:29]} Rxf5 {[%emt 0:00:11]} 72. Ra7+ {[%emt 0:00:15]} Kg6 {[%emt 0:00:20]} 73. Rb7 {[%emt 0:00:18]} Rf4 {[%emt 0:00:47]} 74. Rb8 {[%emt 0:00:23]} Re3 {[%emt 0:00:14]} 75. Kc7 {[%emt 0:00:20]} Rc3+ {[%emt 0:00:11]} 76. Kd7 {[%emt 0:00:06]} Rf7+ {[%emt 0:00:12]} 77. Ke6 {[%emt 0:00:23]} Re3+ {[%emt 0:00:05]} 78. Kd6 {[%emt 0:00:03]} Rxb3 {[%emt 0:00:04]} 79. Rg8+ {[%emt 0:00:11]} Rg7 {[%emt 0:00:50]} 80. Rb8 {[%emt 0:00:12]} Kf5 {[%emt 0:00:38]} 81. Kc6 {[%emt 0:00:15]} Rc3+ {[%emt 0:00:07]} 82. Kd6 {[%emt 0:00:02]} b3 {[%emt 0:00:09]} 83. Rb7 {[%emt 0:00:10]} Rg6+ {[%emt 0:00:15]} 84. Ke7 {[%emt 0:00:05]} Re3+ {[%emt 0:00:07]} 85. Kf7 {[%emt 0:00:10]} Rd6 {[%emt 0:00:14]} 0-1

[Event "SixDays Budapest GM-B January 2024"]
[Site "Budapest"]
[Date "2024.01.29"]
[Round "4.4"]
[White "Varga, Zoltan"]
[Black "Dau Khuong Duy"]
[Result "0-1"]
[ECO "E83"]
[WhiteElo "2366"]
[BlackElo "2309"]
[Annotator "RC"]
[PlyCount "68"]
[EventDate "2024.01.26"]
[EventType "tourn"]
[EventCountry "HUN"]
[SourceTitle "playchess.com"]
[Source "ChessBase"]
[SourceQuality "1"]
[TimeControl "5400+30"]

1. d4 {[%emt 0:12:56]} Nf6 {[%emt 0:00:16]} 2. c4 {[%emt 0:00:07]} g6 {[%emt 0:00:05]} 3. Nc3 {[%emt 0:00:02]} Bg7 {[%emt 0:00:06]} 4. e4 {[%emt 0:00:04]} d6 {[%emt 0:00:05]} 5. f3 {[%emt 0:00:03]} O-O {[%emt 0:00:36]} 6. Be3 {[%emt 0:00:06]} Nc6 {[%emt 0:00:26]} 7. Qd2 {[%emt 0:01:52]} a6 {[%emt 0:00:56]} 8. O-O-O {[%emt 0:01:37]} b5 {[%emt 0:11:53]} 9. g4 {[%emt 0:01:45]} e5 {[%emt 0:17:58]} 10. d5 {[%emt 0:04:20]} Nd4 {[%emt 0:01:55]} 11. Nce2 {[%emt 0:00:05]} Nd7 {[%emt 0:18:40]} 12. Nxd4 {[%emt 0:01:33]} exd4 {[%emt 0:00:12]} 13. Bxd4 {[%emt 0:00:02]} Bxd4 {[%emt 0:00:22]} 14. Qxd4 {[%emt 0:00:58]} bxc4 {[%emt 0:00:09]} 15. h4 {[%emt 0:07:14]} Ne5 {[%emt 0:03:00]} 16. g5 {[%emt 0:00:12]} c5 {[%emt 0:05:55]} 17. Qc3 {[%emt 0:14:22]} Rb8 {[%emt 0:05:22]} 18. f4 {[%emt 0:04:47]} Nd3+ {[%emt 0:01:35]} 19. Bxd3 {[%emt 0:05:25]} cxd3 {[%emt 0:00:12]} 20. Nf3 {[%emt 0:03:44]} Rb4 {[%emt 0:10:57]} 21. Nd2 {[%emt 0:04:08]} Bg4 {[%emt 0:03:03]} 22. Rdg1 {[%emt 0:00:03]} Be2 {[%emt 0:00:36]} 23. b3 {[%emt 0:00:42]} Qe7 {[%emt 0:00:53]} 24. h5 {[%emt 0:03:46]} Rxe4 {[%emt 0:03:00]} 25. Nxe4 {[%emt 0:12:37]} Qxe4 {[%emt 0:00:04]} 26. h6 {[%emt 0:00:02]} f6 {[%emt 0:02:17]} 27. gxf6 {[%emt 0:06:47]} Qxf4+ {[%emt 0:00:22]} 28. Kb2 {[%emt 0:00:00]} d2 {[%emt 0:04:12]} 29. Ka3 Rxf6 {[%emt 0:01:00]} 30. Qa5 {[%emt 0:01:59]} Rf8 {[%emt 0:03:38]} 31. Rd1 {[%emt 0:04:53]} Bxd1 {[%emt 0:00:21]} 32. Rxd1 {[%emt 0:00:01]} Qxh6 {[%emt 0:00:08]} 33. Rxd2 {[%emt 0:00:07]} Qe3 {[%emt 0:00:32]} 34. Rc2 {[%emt 0:00:17]} Qd3 {[%emt 0:00:41]} 0-1